fUSD/lending_fUSD_20250811
["ID","MTS","AMOUNT","RATE_DAILY","PERIOD"]
[378526271,1754897441556,-10000.86916498,0.00019,2]
[378526272,1754897441585,-587.75,0.00019,2]
[378526273,1754897441632,-7291.2416197,0.00019,2]
[378526274,1754897441641,-426.91840475,0.00019,2]
[378526275,1754897441655,-10999.34748506,0.00019,2]
[378526276,1754897441669,-27795.9974759,0.00019,2]
[378526290,1754897444001,-1620.69960592,0.0001878,2]
[378526291,1754897444048,-599.49039408,0.0001878,2]
[378526292,1754897444057,-2153.84929629,0.00018822,2]
[378526293,1754897444066,-2220.19,0.00018951,2]
[378526294,1754897444075,-5189.9341795,0.00019,2]
[378526300,1754897458648,-287.54299453,0.00018248,2]
[378526301,1754897460220,-362.74053215,0.00018248,2]
[378526302,1754897462328,-180.49159524,0.00018248,2]
[378526304,1754897467508,-283.75303131,0.00018248,2]
[378526305,1754897469051,-162.18129394,0.00018248,2]
[378526306,1754897472778,-196.30564298,0.00018248,2]
[378526307,1754897474484,-264.78490985,0.00018248,2]
[378526318,1754897512047,-170.73,0.00018032,2]
[378526359,1754897554899,-240.11503667,0.00018004,2]
[378526360,1754897557000,-170.27491792,0.00017485,2]
[378526361,1754897557024,-112.68484244,0.00018004,2]
[378526364,1754897559454,-283.75303131,0.00018004,2]
[378526367,1754897563004,-243.78573304,0.00018004,2]
[378526371,1754897565779,-290.46275811,0.00018004,2]
[378526372,1754897568038,-178.14289525,0.00018004,2]
[378526373,1754897570680,-151.0,0.00018004,2]
[378526374,1754897575392,-151.0,0.00018004,2]
[378526375,1754897577033,-151.0,0.00018004,2]
[378526379,1754897579140,-229.39263296,0.00018004,2]
[378526381,1754897582123,-300.81,0.00018004,2]
[378526382,1754897582147,-49.72090021,0.00018004,2]
[378526384,1754897586921,-198.6,0.00017962,2]
[378526385,1754897587691,-93.06796083,0.00018004,2]
[378526386,1754897591208,-257.43412893,0.00018004,2]
[378526387,1754897596007,-151.0,0.00018003,2]
[378526390,1754897598820,-149.73,0.00018003,2]
[378526391,1754897598847,-29.41379973,0.00018004,2]
[378526392,1754897600436,-159.1825092,0.00018004,2]
[378526396,1754897603084,-168.05,0.00018004,2]
[378526397,1754897604995,-1140.55030306,0.00018004,2]
[378526398,1754897606632,-500.0,0.00018004,2]
[378526404,1754897610082,-367.26248694,0.00018004,2]
[378526405,1754897611714,-302.6,0.00018004,2]
[378526406,1754897611737,-189.58721,0.00018004,2]
[378526407,1754897613525,-270.41087216,0.00018004,2]
[378526458,1754897783071,150.0,0.0002599,120]
[378526478,1754897806593,-177.09,0.00017552,2]
[378526479,1754897808853,-250.0,0.00017552,2]
[378526480,1754897813504,-94.91,0.00017552,2]
[378526481,1754897813527,-60.66958729,0.00017903,2]
[378526483,1754897817123,-99.69272574,0.00017903,2]
[378526501,1754897878221,11.190001,0.00013699,2]
[378526502,1754897878246,257.969999,0.00013699,2]
[378526584,1754898237636,-156.78,0.00017617,2]
[378526585,1754898237663,-156.78,0.00017647,2]
[378526586,1754898237695,-156.78,0.00017676,2]
[378526587,1754898237723,-156.78,0.00017705,2]
[378526588,1754898237750,-156.78,0.00017735,2]
[378526589,1754898237775,-170.0,0.00017764,7]
[378526590,1754898237807,-156.78,0.00017764,2]
[378526591,1754898237836,-156.78,0.00017794,2]
[378526592,1754898237861,-192.27489755,0.00017903,2]
[378526593,1754898237887,-300.0,0.00018003,2]
[378526594,1754898237915,-1200.0,0.00018003,2]
[378526595,1754898237940,-302.51,0.00018003,2]
[378526596,1754898237965,-303.54,0.00018004,2]
[378526597,1754898237992,-302.7,0.00018004,2]
[378526598,1754898238018,-301.52,0.00018004,2]
[378526599,1754898238043,-300.06,0.00018004,2]
[378526600,1754898238069,-302.55,0.00018004,2]
[378526601,1754898238096,-300.84,0.00018004,2]
[378526602,1754898238123,-305.77,0.00018004,2]
[378526603,1754898238149,-4072.65289916,0.00018004,2]
[378526604,1754898238175,-4263.31,0.00018052,2]
[378526605,1754898238206,-275.68,0.00018076,2]
[378526606,1754898238231,-151.0,0.0001814,2]
[378526607,1754898238257,-151.0,0.00018146,2]
[378526608,1754898238283,-151.0,0.00018149,2]
[378526609,1754898238652,151.0,0.00018136,2]
[378526611,1754898248673,215.9418,0.00017664,2]
[378526618,1754898281531,167.15,0.00017862,2]
[378526621,1754898288866,250.0,0.00017851,2]
[378526622,1754898303286,159.77,0.00017862,2]
[378526623,1754898304599,150.0,0.00017088,2]
[378526624,1754898304663,150.0,0.00018037,2]
[378526625,1754898308305,150.0,0.00017088,2]
[378526626,1754898308441,150.0,0.00018037,2]
[378526627,1754898308794,150.0,0.00017088,2]
[378526628,1754898308834,150.0,0.00017562,2]
[378526629,1754898308893,150.0,0.00018037,2]
[378526630,1754898308980,150.99404493,0.00017088,2]
[378526634,1754898315114,150.0,0.00017088,2]
[378526635,1754898315158,150.0,0.00017088,2]
[378526636,1754898315221,150.0,0.00017088,2]
[378526637,1754898315310,150.0,0.00017088,2]
[378526639,1754898317434,152.22019572,0.00017088,2]
[378526641,1754898327187,150.0,0.00017088,2]
[378526642,1754898327263,150.0,0.00017088,2]
[378526643,1754898327303,151.57646279,0.00017088,2]
[378526644,1754898327406,150.0,0.00017088,2]
[378526645,1754898328502,151.07974429,0.00017088,2]
[378526646,1754898329936,150.0,0.00017088,2]
[378526647,1754898330033,150.69093183,0.00017088,2]
[378526656,1754898346099,-224.0084834,0.0001778,2]
[378526659,1754898350199,-270.71920357,0.0001778,2]
[378526660,1754898353343,-402.3962309,0.0001778,2]
[378526661,1754898355977,-102.87608213,0.0001778,2]
[378526670,1754898419664,1900.0,0.00025999,120]
[378526671,1754898435187,-236.57901805,0.00017885,2]
[378526672,1754898437757,7.28905427,0.00025,120]
[378526673,1754898437786,2439.01200151,0.00025,120]
[378526674,1754898438707,-285.06023107,0.00017885,2]
[378526675,1754898441389,-191.42817716,0.00017885,2]
[378526677,1754898443528,-335.17159177,0.00017885,2]
[378526680,1754898446467,-188.34,0.00017885,2]
[378526681,1754898450571,-171.65228706,0.00017885,2]
[378526682,1754898453446,-192.94603289,0.00017885,2]
[378526683,1754898503010,-185.11249383,0.00017746,2]
[378526684,1754898505514,-210.08099618,0.00017746,2]
[378526685,1754898507856,-240.20819004,0.00017746,2]
[378526686,1754898513537,-7.07831995,0.00017746,2]
[378526687,1754898518295,-202.37631107,0.00017741,2]
[378526688,1754898520059,-299.58909127,0.00017741,2]
[378526689,1754898521701,-113.06459766,0.00017741,2]
[378526690,1754898521724,-43.64372532,0.00017755,2]
[378526691,1754898527404,-133.24627468,0.00017755,2]
[378526692,1754898562876,-156.89174121,0.00017875,2]
[378526693,1754898566469,-3.47057182,0.00017875,2]
[378526711,1754898632861,-2094.9849034,0.00017975,2]
[378526712,1754898632870,-242.21724458,0.00017975,2]
[378526713,1754898632880,-56.08384075,0.00018049,2]
[378526714,1754898632892,-462.91615925,0.00018049,2]
[378526715,1754898632901,-45.08384075,0.00018097,5]
[378526716,1754898632913,-591.82481187,0.00018097,5]
[378526717,1754898632950,-363.09134738,0.00018097,5]
[378526718,1754898632960,-191.85153735,0.00018118,2]
[378526719,1754898632970,-363.09208738,0.00018218,2]
[378526738,1754898633176,-928.92931686,0.00018218,2]
[378526836,1754898638515,-300.87859576,0.00018218,2]
[378526837,1754898638524,-305.29,0.00018218,2]
[378526838,1754898638534,-304.31,0.00018218,2]
[378526839,1754898638544,-1200.0,0.00018251,2]
[378526840,1754898638553,-7781.66,0.00018253,2]
[378526841,1754898638562,-299.99,0.00018253,4]
[378526842,1754898638571,-1168.25,0.00018253,2]
[378526843,1754898638580,-499.99,0.00018253,2]
[378526844,1754898638590,-150.99,0.00018253,2]
[378526845,1754898638599,-191.85153735,0.00018412,2]
[378526846,1754898638608,-168.09,0.0001842,2]
[378526847,1754898638618,-45106.65096952,0.000185,2]
[378526848,1754898638628,-150.0,0.00018512,2]
[378526849,1754898638637,-305.29,0.00018552,2]
[378526850,1754898638646,-305.34,0.00018552,2]
[378526851,1754898638656,-615.03,0.00018628,2]
[378526852,1754898638665,-600.0,0.00018653,2]
[378526853,1754898638674,-1500.0,0.00018753,2]
[378526854,1754898638685,-547.0838,0.00018753,2]
[378526855,1754898638699,-2500.0,0.00018753,2]
[378526871,1754898638997,-194.00384664,0.00018753,2]
[378526873,1754898639009,-167.46875508,0.00018754,2]
[378526875,1754898639019,-194.00384661,0.00018761,2]
[378526877,1754898639028,-194.00384661,0.00018768,2]
[378526879,1754898639038,-194.00384661,0.00018776,2]
[378526881,1754898639048,-167.46875508,0.00018778,2]
[378526883,1754898639057,-194.00384661,0.00018784,2]
[378526885,1754898639066,-194.00384661,0.00018792,2]
[378526887,1754898639076,-194.00384661,0.00018799,2]
[378526889,1754898639085,-215.6572,0.000188,2]
[378526891,1754898639095,-2095.45499611,0.000188,2]
[378526893,1754898639104,-15866.21,0.000188,2]
[378526895,1754898639114,-167.46875508,0.00018803,2]
[378526897,1754898639123,-781.7476754,0.00018804,2]
[378526899,1754898639132,-194.00384661,0.00018807,2]
[378526901,1754898639142,-7000.0,0.0001881,2]
[378526903,1754898639151,-2095.45499607,0.00018811,2]
[378526905,1754898639160,-194.00384661,0.00018815,2]
[378526907,1754898639170,-2095.45499607,0.00018822,2]
[378526909,1754898639179,-194.00384661,0.00018823,2]
[378526911,1754898639189,-167.46875508,0.00018827,2]
[378526913,1754898639199,-194.00384661,0.0001883,2]
[378526915,1754898639208,-2095.45499607,0.00018833,2]
[378526917,1754898639218,-194.00384661,0.00018838,2]
[378526919,1754898639227,-1438.09495884,0.00018842,2]
[378526921,1754898639237,-2095.45499607,0.00018844,2]
[378526923,1754898639247,-194.00384661,0.00018846,2]
[378526925,1754898639256,-167.46875508,0.00018851,2]
[378526927,1754898639265,-178250.2148401,0.00018853,2]
[378526929,1754898639274,-13078.9771837,0.00018853,2]
[378526930,1754898639284,-63776.3973413,0.00018853,2]
[378526933,1754898639293,-194.00384661,0.00018854,2]
[378526935,1754898639302,-2095.45499607,0.00018856,2]
[378526936,1754898639313,-194.00384661,0.00018861,2]
[378526938,1754898639322,-2095.45499607,0.00018867,2]
[378526940,1754898639331,-194.00384661,0.00018869,2]
[378526943,1754898639341,-500.0,0.00018873,2]
[378526944,1754898639350,-640.29567858,0.00018873,2]
[378526946,1754898639360,-500.0,0.00018873,2]
[378526948,1754898639369,-153.52373357,0.00018873,2]
[378526950,1754898639378,-167.46875508,0.00018876,2]
[378526952,1754898639388,-194.00384661,0.00018877,2]
[378526954,1754898639397,-150.0,0.00018877,2]
[378526956,1754898639407,-2095.45499607,0.00018878,2]
[378526958,1754898639417,-153.52373356,0.0001888,2]
[378526960,1754898639426,-194.00384661,0.00018885,2]
[378526962,1754898639436,-153.52373356,0.00018887,2]
[378526964,1754898639445,-2095.45499607,0.00018889,2]
[378526966,1754898639454,-194.00384661,0.00018892,2]
[378526968,1754898639463,-153.52373356,0.00018893,2]
[378526970,1754898639473,-3580.21717309,0.000189,2]
[378526972,1754898639484,-1782.2174,0.000189,2]
[378526974,1754898639494,-1325.07169722,0.000189,2]
[378526976,1754898639503,-2000.0,0.000189,2]
[378526978,1754898639512,-2500.0,0.000189,3]
[378526980,1754898639522,-388.31280063,0.000189,2]
[378526982,1754898639531,-2095.45499607,0.000189,2]
[378526984,1754898639540,-194.00384661,0.000189,2]
[378526986,1754898639550,-153.52373356,0.000189,2]
[378526988,1754898639559,-360.18112033,0.000189,3]
[378526990,1754898639569,-167.46875508,0.000189,2]
[378526992,1754898639578,-747.34115608,0.000189,2]
[378526994,1754898639587,-218.84133942,0.000189,2]
[378526996,1754898639597,-368.95885022,0.00018943,2]
[378526998,1754898639606,-18624.39366829,0.00018944,2]
[378527000,1754898639615,-5645.1366542,0.00018944,2]
[378527002,1754898639625,-18624.39366828,0.00018944,2]
[378527004,1754898639634,-18624.39366828,0.00018947,2]
[378527007,1754898639644,-12091.87613911,0.00018947,2]
[378527009,1754898639653,-274479.32895409,0.00018948,2]
[378527011,1754898639663,-419.89258579,0.00018948,2]
[378527013,1754898639672,-430.07821088,0.00018949,2]
[378527015,1754898639681,-419.89258579,0.00018949,2]
[378527017,1754898639693,-18624.39366828,0.00018949,2]
[378527018,1754898639702,-274479.32895409,0.0001895,2]
[378527020,1754898639712,-368.95885022,0.0001895,2]
[378527022,1754898639720,-185.30772709,0.00018953,2]
[378527024,1754898639730,-5645.1366542,0.00018953,2]
[378527026,1754898639739,-252.63446786,0.00018953,2]
[378527029,1754898639749,-430.07821088,0.00018954,2]
[378527030,1754898639758,-18624.39366829,0.00018954,2]
[378527032,1754898639768,-18624.39366829,0.00018954,2]
[378527035,1754898639777,-18624.39366829,0.00018954,2]
[378527036,1754898639787,-368.95885022,0.00018955,2]
[378527039,1754898639798,-5645.1366542,0.00018955,2]
[378527040,1754898639808,-5645.1366542,0.00018956,2]
[378527043,1754898639818,-274479.32895409,0.00018957,2]
[378527044,1754898639827,-5645.1366542,0.00018958,2]
[378527047,1754898639837,-18624.39366829,0.00018958,2]
[378527049,1754898639846,-274479.32895409,0.00018959,2]
[378527051,1754898639856,-18624.39366828,0.00018959,2]
[378527053,1754898639865,-12091.87613911,0.0001896,2]
[378527055,1754898639875,-5645.1366542,0.0001896,2]
[378527057,1754898639885,-18624.39366829,0.0001896,2]
[378527059,1754898639894,-18624.39366828,0.00018962,2]
[378527061,1754898639903,-34461.39463747,0.00018964,2]
[378527063,1754898639913,-18624.39366829,0.00018964,2]
[378527065,1754898639922,-18624.39366829,0.00018964,2]
[378527067,1754898639932,-5645.1366542,0.00018964,2]
[378527069,1754898639941,-12091.87613911,0.00018965,2]
[378527071,1754898639951,-5645.1366542,0.00018966,2]
[378527073,1754898639960,-430.07821088,0.00018966,2]
[378527075,1754898639969,-18624.39366828,0.00018967,2]
[378527077,1754898639979,-18624.39366829,0.00018969,2]
[378527079,1754898639989,-5645.1366542,0.00018969,2]
[378527081,1754898639998,-12091.87613911,0.00018969,2]
[378527083,1754898640008,-252.63446786,0.00018969,2]
[378527085,1754898640017,-5645.1366542,0.0001897,2]
[378527087,1754898640026,-14966.73658731,0.0001897,2]
[378527089,1754898640036,-185.30772709,0.00018971,2]
[378527091,1754898640045,-464.10342692,0.00018973,2]
[378527093,1754898640055,-504.96536559,0.00018973,2]
[378527095,1754898640064,-500.0,0.00018973,2]
[378527097,1754898640075,-500.0,0.00018973,2]
[378527099,1754898640084,-505.29464584,0.00018973,2]
[378527101,1754898640093,-500.0,0.00018973,2]
[378527103,1754898640103,-563.46608371,0.00018973,2]
[378527106,1754898640112,-500.0,0.00018973,2]
[378527109,1754898640121,-500.0,0.00018973,2]
[378527111,1754898640131,-500.0,0.00018973,2]
[378527113,1754898640140,-500.15179162,0.00018973,2]
[378527115,1754898640149,-500.0,0.00018973,2]
[378527117,1754898640159,-502.78563802,0.00018973,2]
[378527119,1754898640169,-500.0,0.00018973,2]
[378527121,1754898640178,-500.0,0.00018973,2]
[378527123,1754898640187,-500.0,0.00018973,2]
[378527125,1754898640197,-501.20075947,0.00018973,2]
[378527127,1754898640206,-530.09559838,0.00018973,2]
[378527129,1754898640216,-500.0,0.00018973,2]
[378527131,1754898640226,-500.0,0.00018973,2]
[378527134,1754898640235,-500.0,0.00018973,2]
[378527136,1754898640245,-502.79054434,0.00018973,2]
[378527139,1754898640254,-164.69197131,0.00018973,2]
[378527141,1754898640264,-500.0,0.00018973,2]
[378527144,1754898640274,-503.72508156,0.00018973,2]
[378527146,1754898640283,-502.25756683,0.00018973,2]
[378527148,1754898640293,-520.30856992,0.00018973,2]
[378527150,1754898640302,-500.0,0.00018973,2]
[378527152,1754898640314,-500.61272097,0.00018973,2]
[378527154,1754898640323,-500.0,0.00018973,2]
[378527156,1754898640333,-500.0,0.00018973,2]
[378527158,1754898640342,-500.0,0.00018973,2]
[378527160,1754898640353,-20885.9678766,0.00018973,2]
[378527161,1754898640363,-252.63446786,0.00018973,2]
[378527163,1754898640372,-5645.1366542,0.00018973,2]
[378527166,1754898640383,-5645.1366542,0.00018974,2]
[378527167,1754898640393,-185.30772709,0.00018974,2]
[378527170,1754898640403,-34461.39463747,0.00018974,2]
[378527172,1754898640413,-20885.9678766,0.00018974,2]
[378527173,1754898640423,-5645.1366542,0.00018975,2]
[378527175,1754898640433,-430.07821088,0.00018976,2]
[378527177,1754898640443,-185.30772709,0.00018976,2]
[378527180,1754898640452,-18624.39366829,0.00018976,2]
[378527181,1754898640461,-252.63446786,0.00018977,2]
[378527184,1754898640471,-5645.1366542,0.00018978,2]
[378527186,1754898640481,-5645.1366542,0.00018978,2]
[378527188,1754898640490,-18624.39366829,0.00018979,2]
[378527189,1754898640500,-18624.39366828,0.00018979,2]
[378527191,1754898640509,-5645.1366542,0.0001898,2]
[378527194,1754898640520,-18624.39366829,0.0001898,2]
[378527196,1754898640530,-34461.39463747,0.0001898,2]
[378527198,1754898640540,-5645.1366542,0.00018981,2]
[378527200,1754898640550,-5645.1366542,0.00018982,2]
[378527202,1754898640560,-419.89258579,0.00018983,2]
[378527204,1754898640569,-368.95885022,0.00018983,2]
[378527206,1754898640579,-18624.39366828,0.00018983,2]
[378527207,1754898640588,-18624.39366829,0.00018985,2]
[378527210,1754898640600,-18624.39366828,0.00018985,2]
[378527212,1754898640611,-419.89258579,0.00018985,2]
[378527214,1754898640631,-419.89258579,0.00018985,2]
[378527216,1754898640642,-274479.32895409,0.00018986,2]
[378527217,1754898640652,-168.39664906,0.00018986,2]
[378527219,1754898640661,-218.6375802,0.00018986,2]
[378527222,1754898640671,-159.59157692,0.00018986,2]
[378527223,1754898640681,-150.0,0.00018986,2]
[378527225,1754898640691,-151.96590132,0.00018986,2]
[378527228,1754898640702,-150.0,0.00018986,2]
[378527230,1754898640712,-34461.39463747,0.00018988,2]
[378527232,1754898640721,-5645.1366542,0.00018988,2]
[378527234,1754898640731,-18624.39366828,0.00018988,2]
[378527236,1754898640740,-5645.1366542,0.00018988,2]
[378527238,1754898640750,-14966.73658731,0.00018988,2]
[378527240,1754898640759,-368.95885022,0.00018988,2]
[378527242,1754898640768,-252.63446786,0.00018989,2]
[378527244,1754898640779,-20885.9678766,0.00018989,2]
[378527247,1754898640788,-5645.1366542,0.00018989,2]
[378527249,1754898640799,-185.30772709,0.0001899,2]
[378527251,1754898640808,-150.19,0.0001899,2]
[378527253,1754898640818,-20885.9678766,0.0001899,2]
[378527255,1754898640828,-40000.0,0.0001899,2]
[378527257,1754898640837,-150.19,0.0001899,2]
[378527259,1754898640846,-150.19,0.0001899,2]
[378527261,1754898640856,-150.19,0.0001899,2]
[378527263,1754898640865,-150.19,0.0001899,2]
[378527265,1754898640874,-150.19,0.0001899,2]
[378527267,1754898640883,-150.19,0.0001899,2]
[378527269,1754898640894,-150.19,0.0001899,2]
[378527270,1754898640903,-150.19,0.0001899,2]
[378527272,1754898640914,-150.19,0.0001899,2]
[378527274,1754898640924,-150.19,0.0001899,2]
[378527276,1754898640934,-150.19,0.0001899,2]
[378527278,1754898640943,-150.19,0.0001899,2]
[378527280,1754898640953,-150.19,0.0001899,2]
[378527283,1754898640963,-150.19,0.0001899,2]
[378527285,1754898640972,-150.19,0.0001899,2]
[378527287,1754898640981,-150.19,0.0001899,2]
[378527289,1754898640990,-150.19,0.0001899,2]
[378527291,1754898641000,-150.19,0.0001899,2]
[378527293,1754898641009,-150.19,0.0001899,2]
[378527294,1754898641019,-150.19,0.0001899,2]
[378527296,1754898641028,-150.19,0.0001899,2]
[378527298,1754898641037,-150.19,0.0001899,2]
[378527300,1754898641047,-150.19,0.0001899,2]
[378527302,1754898641056,-150.19,0.0001899,2]
[378527304,1754898641066,-150.19,0.0001899,2]
[378527306,1754898641075,-150.19,0.0001899,2]
[378527308,1754898641084,-150.19,0.0001899,2]
[378527310,1754898641093,-150.19,0.0001899,2]
[378527312,1754898641102,-150.19,0.0001899,2]
[378527314,1754898641112,-150.19,0.0001899,2]
[378527316,1754898641121,-150.19,0.0001899,2]
[378527319,1754898641132,-150.19,0.0001899,2]
[378527320,1754898641142,-150.19,0.0001899,2]
[378527321,1754898641151,-150.19,0.0001899,2]
[378527322,1754898641160,-150.19,0.0001899,2]
[378527323,1754898641170,-150.19,0.0001899,2]
[378527324,1754898641180,-150.19,0.0001899,2]
[378527325,1754898641189,-150.19,0.0001899,2]
[378527326,1754898641199,-150.19,0.0001899,2]
[378527327,1754898641208,-150.19,0.0001899,2]
[378527328,1754898641217,-150.19,0.0001899,2]
[378527329,1754898641227,-150.19,0.0001899,2]
[378527330,1754898641236,-150.19,0.0001899,2]
[378527331,1754898641245,-150.19,0.0001899,2]
[378527332,1754898641255,-150.19,0.0001899,2]
[378527333,1754898641264,-150.19,0.0001899,2]
[378527334,1754898641273,-150.19,0.0001899,2]
[378527335,1754898641282,-150.19,0.0001899,2]
[378527336,1754898641291,-150.19,0.0001899,2]
[378527337,1754898641300,-150.19,0.0001899,2]
[378527338,1754898641310,-150.19,0.0001899,2]
[378527339,1754898641322,-150.19,0.0001899,2]
[378527341,1754898641331,-150.19,0.0001899,2]
[378527343,1754898641340,-150.19,0.0001899,2]
[378527345,1754898641349,-150.19,0.0001899,2]
[378527347,1754898641360,-150.19,0.0001899,2]
[378527349,1754898641369,-150.19,0.0001899,2]
[378527351,1754898641378,-150.19,0.0001899,2]
[378527353,1754898641388,-150.19,0.0001899,2]
[378527355,1754898641397,-150.19,0.0001899,2]
[378527357,1754898641407,-150.19,0.0001899,2]
[378527359,1754898641417,-150.19,0.0001899,2]
[378527361,1754898641426,-150.19,0.0001899,2]
[378527363,1754898641435,-150.19,0.0001899,2]
[378527365,1754898641445,-150.19,0.0001899,2]
[378527367,1754898641454,-150.19,0.0001899,2]
[378527369,1754898641464,-150.19,0.0001899,2]
[378527371,1754898641474,-150.19,0.0001899,2]
[378527373,1754898641484,-150.19,0.0001899,2]
[378527375,1754898641494,-150.19,0.0001899,2]
[378527377,1754898641503,-150.19,0.0001899,2]
[378527379,1754898641513,-150.19,0.0001899,2]
[378527381,1754898641522,-150.19,0.0001899,2]
[378527383,1754898641533,-150.19,0.0001899,2]
[378527385,1754898641543,-14966.73658731,0.00018992,2]
[378527387,1754898641552,-5645.1366542,0.00018992,2]
[378527389,1754898641562,-9016.9675823,0.00018992,2]
[378527391,1754898641572,-18624.39366829,0.00018992,2]
[378527393,1754898641581,-20885.9678766,0.00018994,2]
[378527395,1754898641591,-430.07821088,0.00018994,2]
[378527397,1754898641600,-34461.39463747,0.00018994,2]
[378527399,1754898641610,-5645.1366542,0.00018996,2]
[378527401,1754898641619,-5645.1366542,0.00018997,2]
[378527403,1754898641629,-14966.73658731,0.00018997,2]
[378527405,1754898641638,-18624.39366829,0.00018998,2]
[378527407,1754898641648,-12091.87613911,0.00018998,2]
[378527409,1754898641658,-1000.0,0.00018999,2]
[378527411,1754898641667,-1000.0,0.00018999,2]
[378527413,1754898641677,-1007.3093,0.00018999,2]
[378527415,1754898641686,-1007.2566,0.00018999,2]
[378527417,1754898641696,-1000.0,0.00018999,2]
[378527419,1754898641706,-1000.0,0.00018999,2]
[378527421,1754898641716,-11259.7630681,0.00018999,2]
[378527423,1754898641726,-300.0,0.00018999,2]
[378527425,1754898641735,-300.0,0.00018999,2]
[378527427,1754898641745,-300.0,0.00018999,2]
[378527429,1754898641754,-14966.73658731,0.00018999,2]
[378527431,1754898641764,-5645.1366542,0.00019,2]
[378527433,1754898641773,-777905.87916076,0.00019,2]
[378527435,1754898641783,-9316.44868268,0.00019,2]
[378527437,1754898641793,-74421.75550689,0.00019,2]
[378527440,1754898641812,-8353.4,0.00019,2]
[378527486,1754898642246,-25241.19823784,0.00019,2]
[378527488,1754898642261,-8180.461751,0.00019,2]
[378527491,1754898642274,-35833.590824,0.00019,2]
[378527504,1754898642410,-4623.8517117,0.00019,2]
[378527593,1754898643333,-2644.15672449,0.00019,2]
[378527598,1754898644613,-78.21649397,0.00019,2]
[378527599,1754898644625,-329.0207687,0.00019,2]
[378527600,1754898644636,-2323.91063749,0.00019,2]
[378527601,1754898644650,-10835.06357944,0.00019,2]
[378527602,1754898644663,-30262.87171834,0.00019,2]
[378527603,1754898644685,-13000.0,0.00019,2]
[378527604,1754898645264,-624.75113908,0.00019,2]
[378527605,1754898645469,-437.26821592,0.00019,2]
[378527606,1754898645482,-3532.05,0.00019,2]
[378527607,1754898645493,-1932.1,0.00019,2]
[378527608,1754898645628,-47.52686453,0.00019,2]
[378527609,1754898647646,-518.0,0.00018049,2]
[378527610,1754898647657,-9862.32687425,0.00019,2]
[378527611,1754898647669,-4688.84682195,0.00019,2]
[378527612,1754898647680,-674.21354756,0.00019,2]
[378527613,1754898647691,-366.52,0.00019,2]
[378527614,1754898647703,-2749.06638888,0.00019,2]
[378527615,1754898647734,-567.73593833,0.00019,2]
[378527616,1754898647746,-23968.26426251,0.00019,2]
[378527623,1754898692143,-154.51472857,0.00017938,2]
[378527624,1754898694082,-45.48527143,0.00017938,2]
[378527625,1754898701386,10000.0,0.00021,30]
[378527627,1754898725200,10000.0,0.00017,10]
[378527628,1754898816430,-154.51472857,0.0001787,2]
[378527629,1754898819400,-242.01469961,0.0001787,2]
[378527630,1754898822207,-161.88339061,0.0001787,2]
[378527631,1754898826835,-238.11660939,0.0001787,2]
[378527632,1754898831461,-124.95057182,0.0001787,2]
[378527633,1754898857335,-250.0,0.00017049,2]
[378527634,1754898861899,-268.0,0.00017049,2]
[378527635,1754898862353,-44.48434664,0.00017869,2]
[378527636,1754898864921,-203.81453385,0.00017869,2]
[378527637,1754898870338,-41.28111951,0.00017869,2]
[378527638,1754898902632,-265.24483812,0.0001787,2]
[378527639,1754898904992,-163.9716509,0.0001787,2]
[378527640,1754898906797,-174.14355517,0.0001787,2]
[378527641,1754898908757,-214.24150108,0.0001787,2]
[378527642,1754898911677,-161.63295825,0.0001787,2]
[378527643,1754898915668,-22.59549648,0.0001787,2]
[378527644,1754898915706,-316.873,0.00017875,2]
[378527645,1754898915744,-34.88920039,0.00017875,2]
[378527646,1754898918805,-347.82690478,0.00017875,2]
[378527647,1754898922431,-266.21204023,0.00017875,2]
[378527648,1754898926759,-196.56067485,0.00017875,2]